Cogmind - Beta 13 @@@ ROGUE MODE // 2024.04.04 @ 00:03:52 Player: Olafz Result: Destroyed by S-10 Pest with Light Assault Rifle Performance ------------- Evolutions (1) 500 Regions Visited (2) 400 Robots Destroyed (19) 95 Value Destroyed (350) 350 Prototype IDs (4) 80 Alien Tech Used (0) 0 Bonus (0) 0 TOTAL SCORE: 1425 Bonus ------- None Cogmind --------- Core Integrity 0/400 Matter 175/300 Energy 100/100 System Corruption 0% Temperature Cool (0) Movement Core (150) Ox2 Location -9/Materials Parts ------- > --- POWER (1) -------- (None) > --- PROPULSION (2) --- (None) > --- UTILITY (4) ------ Small Storage Unit Signal Interpreter Transport Network Coupler > --- WEAPON (2) ------- Beam Cannon > --- INVENTORY (8) ---- Light Ion Engine Heat Sink Large Storage Unit Targeting Computer Beam Cannon Peak State ------------ > --- POWER ------------ Ion Engine > --- PROPULSION ------- Aluminum Leg > --- UTILITY ---------- Small Storage Unit Sensor Array Signal Interpreter Transport Network Coupler > --- WEAPON ----------- Improved Medium Laser Advanced Beam Cannon > --- INVENTORY -------- Light Ion Engine Heat Sink Large Storage Unit Targeting Computer Beam Cannon Beam Cannon Beam Cannon [Rating: 12] Favorites ----------- Power Ion Engine Engine Ion Engine Propulsion Aluminum Leg Leg Aluminum Leg Utility Small Storage Unit Device Sensor Array Storage Small Storage Unit Processor Signal Interpreter Weapon Beam Cannon Energy Gun Improved Medium Laser Energy Cannon Beam Cannon Ballistic Gun Light Assault Rifle Build | -11 -10 -9 ------- Run | Yrd Mat Mat Slots Evolved 2 | . . 2 Power . | . . . Propulsion . | . . . Utility 2 | . . 2 Weapon . | . . . Parts Attached 26 | 6 13 7 Power 4 | 1 3 . Engine 4 | 1 3 . Core . | . . . Reactor . | . . . Propulsion 8 | 2 5 1 Treads . | . . . Leg 8 | 2 5 1 Wheel . | . . . Hover . | . . . Flight . | . . . Utility 5 | 1 2 2 Device 2 | . 2 . Storage 1 | 1 . . Processor 2 | . . 2 Hackware . | . . . Protection . | . . . Artifact . | . . . Weapon 9 | 2 3 4 Energy Gun 1 | . . 1 Energy Cannon 5 | . 2 3 Ballistic Gun 3 | 2 1 . Ballistic Cannon . | . . . Launcher . | . . . Special Weapon . | . . . Impact Weapon . | . . . Slashing Weapon . | . . . Piercing Weapon . | . . . Special Melee Weapon . | . . . Unidentified Prototypes 2 | . . 2 Parts Lost 12 | . 5 7 Power 2 | . 1 1 Propulsion 4 | . 2 2 Utility 1 | . . 1 Weapon 5 | . 2 3 Highest Loss Streak 7 | . 3 7 To Critical Strikes . | . . . Average Slot Usage (%) 84 | . 90 73 Engine 11 | . 12 9 Leg 18 | . 23 9 Device 11 | . 13 9 Storage 12 | . 14 11 Processor 5 | . . 13 Energy Gun 3 | . . 9 Energy Cannon 9 | . 7 11 Ballistic Gun 10 | . 17 . Naked Turns . | . . . Heaviest Build 18 | 13 17 18 Greatest Support 20 | 20 20 10 Greatest Overweight (x) 3 | 1 3 3 Average Overweight (x) . | . . 1 Largest Inventory Capacity 8 | 8 8 8 Average Capacity 7 | 7 8 8 Most Carried 8 | 1 8 8 Average Carried 5 | . 5 7 Final Capacity 8 | 8 8 8 Final Carried 8 | 1 8 5 Class Distribution -------------------- 87% | Mutant 12% | Scavenger-Skirmisher Dominant Class ---------------- Mutant | -10/Materials Mutant | -9/Materials Resources | -11 -10 -9 ----------- Run | Yrd Mat Mat Matter Collected 504 | 241 196 67 Remotely . | . . . Salvage Created 480 | . 273 207 Parts 34 | . 24 10 Haulers Intercepted 1 | . 1 . Recyclers Shooed 1 | . 1 . Parts Field Recycled . | . . . Retrieved Matter . | . . . Parts Self-Destructed . | . . . Prevented . | . . . Kills | -11 -10 -9 ------- Run | Yrd Mat Mat Combat Hostiles Destroyed 15 | . 9 6 Guns 9 | . 6 3 Cannons 5 | . 3 2 Classes Destroyed 7 | . 5 2 Worker 1 | . . 1 Hauler 1 | . 1 . Operator 1 | . 1 . Watcher 1 | . 1 . Swarmer 9 | . 6 3 Grunt 5 | . 3 2 Sentry 1 | . . 1 Best Kill Streak 3 | . 3 3 Combat Bots Only 3 | . 3 3 Max Kills in Single Turn 1 | . 1 1 Gunslinging . | . . . Exploded . | . . . Melee . | . . . Uniques/NPCs Destroyed . | . . . Combat | -11 -10 -9 -------- Run | Yrd Mat Mat Hostile Shots Fired 243 | . 127 116 Missed 55 | . 42 13 Damage Taken 1722 | . 738 984 Core 588 | . 180 408 Absorbed by Shields . | . . . Core Remaining (%) 64 | 100 28 . Volleys Fired 69 | . 41 28 Largest 2 | . 2 2 Hottest 124 | . 120 124 Shots Fired 119 | . 74 45 Gun 72 | . 56 16 Cannon 47 | . 18 29 Launcher . | . . . Special . | . . . Kinetic 56 | . 56 . Thermal 63 | . 18 45 Explosive . | . . . Electromagnetic . | . . . Robot Hit Streak 9 | . 4 9 Robot Miss Streak 6 | . 6 3 Penetration Max . | . . . Secondary Targets 1 | . 1 . Max Gunslinging Chain 1 | . 1 . Shots Hit Robots 62 | . 34 28 Core Hits 23 | . 17 6 Critical Kills 1 | . 1 . Critical Parts Destroyed . | . . . Critical Strikes 3 | . 1 2 Burn 2 | . . 2 Destroy 1 | . 1 . Melee Attacks . | . . . Impact . | . . . Slashing . | . . . Piercing . | . . . Sneak Attacks . | . . . Combat Hostiles . | . . . Follow-up Attacks . | . . . Damage Inflicted 974 | . 416 558 Guns 440 | . 267 173 Cannons 520 | . 142 378 Explosions . | . . . Melee . | . . . Ramming 14 | . 7 7 Kinetic 267 | . 267 . Thermal 693 | . 142 551 Explosive . | . . . Electromagnetic . | . . . Impact . | . . . Slashing . | . . . Piercing . | . . . Highest Corruption 1 | . 1 . Average Corruption 1 | . 1 . Corruption Purged . | . . . Corruption Blocked . | . . . Effects 6 | . 6 . Message Errors 2 | . 2 . Matter Fused 2 | . 2 . Energy Discharges 1 | . 1 . Data Loss (minor) 1 | . 1 . Overload Shots . | . . . Overflow Damage 29 | . . 29 Projectiles 29 | . . 29 Explosions . | . . . Melee . | . . . Knockbacks . | . . . Impact . | . . . Kinetic . | . . . Secondary . | . . . Self-Inflicted Damage 1 | . . 1 Shots . | . . . Rammed 1 | . . 1 Targets Rammed 11 | . 6 5 Kicked 10 | . 6 4 Crushed . | . . . Highest Temperature 625 | . 306 625 Average Temperature 208 | . 99 260 Received Heat Transfer 345 | . 120 225 Effects 17 | . . 17 Shutdowns 1 | . . 1 Energy Bleed 2 | . . 2 Matter Decay 3 | . . 3 Short Circuit 3 | . . 3 Damage (minor) 4 | . . 4 Damage (major) 4 | . . 4 Siege Activations . | . . . Robots Corrupted . | . . . Combat Hostiles . | . . . Parts Fried . | . . . Impact Corruptions . | . . . Robots Melted 1 | . . 1 Combat Hostiles 1 | . . 1 Parts Melted 5 | . 1 4 Heat Transferred 1517 | . 296 1221 Parts Sabotaged . | . . . Parts Stolen . | . . . Parts Stripped . | . . . Power Chain Reactions . | . . . Alert | -11 -10 -9 ------- Run | Yrd Mat Mat Peak Influence 215 | . 182 215 Initial 28 | . . 28 Average 89 | . 85 111 Maximum Alert Level 1 | . . 1 Low Security (%) 96 | 100 100 91 Level 1 3 | . . 8 Level 2 . | . . . Level 3 . | . . . Level 4 . | . . . Level 5 . | . . . High Security . | . . . Max Security . | . . . Squads Dispatched 2 | . 1 1 Investigation 1 | . . 1 Extermination . | . . . Reinforcement 1 | . 1 . Assault . | . . . Garrison . | . . . Intercept . | . . . Searches Triggered . | . . . Construction Impeded . | . . . Haulers Reinforced . | . . . Active Scanning Responses . | . . . Cargo Convoy Interrupts . | . . . Stealth | -11 -10 -9 --------- Run | Yrd Mat Mat Distress Signals 2 | . . 2 Communications Jammed . | . . . Distress Signals . | . . . Times Spotted 30 | . 14 16 Peak Tracking Total 9 | . 5 9 Tactical Retreats 1 | . 1 . Traps | -11 -10 -9 ------- Run | Yrd Mat Mat Traps Triggered 4 | . 3 1 Indirectly . | . . . Trap Hack Attempts . | . . . Triggered . | . . . Disarmed . | . . . Reprogrammed . | . . . Reused . | . . . Traps Extracted . | . . . Installed . | . . . Triggered . | . . . Machines | -11 -10 -9 ---------- Run | Yrd Mat Mat Machines Disabled 1 | . 1 . Max in Single Turn 1 | . 1 . Machines Repaired . | . . . Machines Dismantled . | . . . Machines Sabotaged . | . . . Overloaded Fab Kills . | . . . Hacking | -11 -10 -9 --------- Run | Yrd Mat Mat Machines Accessed 10 | . 4 6 Terminals 8 | . 4 4 Fabricators . | . . . Repair Stations 1 | . . 1 Recycling Units . | . . . Scanalyzers 1 | . . 1 Garrison Access . | . . . Total Hacks 29 | . 9 20 Successful 7 | . 3 4 Failed 22 | . 6 16 Catastrophic 5 | . 1 4 Database Lockouts . | . . . Manual 22 | . 8 14 Terminals 25 | . 9 16 Fabricators . | . . . Repair Stations 3 | . . 3 Recycling Units . | . . . Scanalyzers 1 | . . 1 Garrison Access . | . . . Terminal Hacks 7 | . 3 4 Prototype ID Bank 1 | . . 1 Branch Access Points 1 | . . 1 Emergency Access Points 2 | . 1 1 Recall Reinforcements 1 | . 1 . Zone Layout 1 | . . 1 Patrol Navigation 1 | . 1 . Fabricator Hacks . | . . . Repair Station Hacks . | . . . Recycling Unit Hacks . | . . . Scanalyzer . | . . . Garrison Access Hacks . | . . . Unauthorized Hacks . | . . . Terminals . | . . . Fabricators . | . . . Repair Stations . | . . . Recycling Units . | . . . Scanalyzers . | . . . Garrison Access . | . . . Data Cores Recovered . | . . . Used . | . . . Hacking Detections 9 | . 3 6 Full Trace Events 4 | . 1 3 Feedback Events . | . . . Feedback Blocked . | . . . Robot Schematics Acquired . | . . . Robots Built . | . . . Authchips . | . . . Time . | . . . Total Robot Build Rating . | . . . Part Schematics Acquired . | . . . Parts Built . | . . . Authchips . | . . . Time . | . . . Total Part Build Rating . | . . . Parts Repaired . | . . . Time . | . . . Parts Recycled . | . . . Recycled Matter . | . . . Retrieved Matter . | . . . Retrieved Components . | . . . Parts Scanalyzed . | . . . Part Schematics Acquired . | . . . Parts Damaged . | . . . Bothacking | -11 -10 -9 ------------ Run | Yrd Mat Mat Used RIF Installer . | . . . Robots Hacked . | . . . Non-combat . | . . . Combat . | . . . Robot Hacks Applied . | . . . Relay Couplers Released . | . . . Fabnet Peak Effective % . | . . . Robots Rewired . | . . . Allies Hacked . | . . . Hacks Repelled . | . . . Allies | -11 -10 -9 -------- Run | Yrd Mat Mat Total Allies . | . . . Largest Group . | . . . Highest-Rated Group . | . . . Highest-Rated Ally . | . . . Total Orders . | . . . Ally Attacks . | . . . Total Damage . | . . . Kills . | . . . Allies Corrupted . | . . . Allies Melted . | . . . Intel | -11 -10 -9 ------- Run | Yrd Mat Mat Robot Analysis Total . | . . . Derelict Logs Recovered . | . . . Drone Launches . | . . . Drone Recoveries . | . . . Exploration | -11 -10 -9 ------------- Run | Yrd Mat Mat Turns Passed 1005 | 65 587 353 Spaces Moved 520 | 51 331 138 Core 23 | 12 1 10 Treads . | . . . Legs 497 | 39 330 128 Wheels . | . . . Hover . | . . . Flight . | . . . Fastest Speed 50 | 50 120 100 Average Speed 145 | 109 134 184 Slowest Speed 200 | 190 200 200 Overloaded Moves . | . . . Propulsion Burnouts . | . . . Robots Hopped . | . . . Cave-ins Triggered . | . . . Exploration Rate (%) 27 | 3 65 14 Regions Visited 2 Branch Regions . Pre-discovered Areas . | . . . Known Exits Taken . | . . . Unknown Exits Taken 2 | 1 1 . Scrap Searched . | . . . Spaces Dug . | . . . Terrain Destroyed . | . . . Melee . | . . . Projectile . | . . . AOE . | . . . Terrain Rammed . | . . . Walls Destroyed . | . . . Machines Disabled . | . . . Actions | -11 -10 -9 --------- Run | Yrd Mat Mat Total 644 | 57 401 186 Wait 6 | . . 6 Move 518 | 50 330 138 Hop . | . . . Pick Up 9 | 1 8 . Fast Attach 16 | 6 7 3 Attach 6 | . 2 4 Detach 1 | . . 1 Swap 4 | . 4 . Drop 4 | . 3 1 Fire 69 | . 41 28 Melee . | . . . Ram 1 | . . 1 Kick 10 | . 6 4 Crush . | . . . Escape Stasis . | . . . Rewire . | . . . Trap . | . . . Miscellaneous . | . . . Route ------- -11/Scrapyard -10/Materials (discovered 2 exits: *Mat / [*Min]) -9/Materials (discovered 1 exit: Min) History --------- Turn | Location | Event 6 | -11/Scrapyard | Discovered new exit (range 15) 66 | -11/Scrapyard | Entered Materials 96 | -10/Materials | Discovered new exit (range 12) 263 | -10/Materials | Discovered new exit (range 16) 311 | -10/Materials | Build established: Mutant 472 | -10/Materials | Core integrity fell below 50% 474 | -10/Materials | Lost 3 parts (1p2w) 653 | -10/Materials | Entered another Materials area 653 | -9/Materials | Evolved 2 slots: Utility x2 855 | -9/Materials | Identified exit to Mines 966 | -9/Materials | Core integrity fell below 50% 983 | -9/Materials | Core integrity fell below 20% 1006 | -9/Materials | Destroyed by S-10 Pest with Light Assault Rifle Last Messages --------------- 00965_ Overheating: Broken Transport Network Coupler damaged (-4). 00965_ Overheating: Broken Signal Interpreter damaged (-8). 00965_ Overheating: Broken Imp. Medium Laser damaged (-7). 00966_ Overheating: Energy bleed (-9). 00966_ Adv. Beam Cannon destroyed. 00966_ Broken Imp. Medium Laser destroyed. 00967_ Overheating: Sml. Storage Unit damaged (-57). 00968_ R-06 Scavenger collects Ion Engine. 00968_ Acquired Aluminum Leg. 00969_ Overheating: Matter decay (-27). 00972_ R-06 Scavenger collects Wheel. 00973_ Overheating: Energy bleed (-14). 00982_ W-16 Scout sends out distress signal. 00983_ Kicked W-16 Scout. 00985_ Kicked S-10 Pest out of the way. 00986_ Kicked S-10 Pest. 00989_ Aluminum Leg destroyed. 00990_ Slammed into S-10 Pest. 00996_ Beam Cannon destroyed. [Achievement: Back For More] Map ----- +----------------------------------------------------+ | ?????????????????????????????????????????????????? | | ??????????????????????????????????##?????????????? | | ?????????????????????????????????? ?????????????? | | ?????????????????????????????????? #?????????????? | | ?????????????????????????????????? #?????????????? | | ?????????????????????????????????? #?????????????? | | ?????????????????????????????????? #?????????????? | | ?????????????????????????????????# #?????????????? | | ?????????????????????????????????# #?????????????? | | ??????????????????????????????####/###???????????? | | ??????????????????????????????# #???????????? | | ??????????????????????????????# #???????????? | | ??????????????????????????????# #???????????? | | ??????????????????????????????# %%% #???????????? | | ??????????????????????????????# #???????????? | | ??????????????????????????????# #???????????? | | ??????????????????????????????####/###?########??? | | ?????????????????????????????????# #???# #??? | | ?????????????????????????????????# #???# #### | | ?????????????????????????????????# #???# "" ## | | ?????????????????????????????????# #???# """ ##[ | | ?????????????????????????????????# #???# S" ## | | ???????????????????????????????### ###?# ## | | ???????????????????????????????# #######+### | | ?????????????????####+########## # | | ??????????a @ssssss %T + | | ?????????? k #########u # | | ?????????? ????????????# % ##+######## | | ??????????? !*????????????????###+### #??#! | | ????????????????????????????????# ##""" #??# | | ????????????????????????????????# ##"R #??#! | | ????????????????????????????????# ##""" #??# | | ????????????????????????????????# " ## "" #??### | | ????????????????????????????????# T ## #????? | | ????????????????????????????????# " #########????? | | ????????????????????????????????# #????????????? | | ????????????????????????????????#####????????????? | | ?????????????????????????????????????????????????? | | ????????????????>????????????????????????????????? | | ?????????????????????????????????????????????????? | | ?????????????????????????????????????????????????? | | ?????????????????????????????????????????????????? | | ?????????????????????????????????????????????????? | | ?????????????????????????????????????????????????? | | ?????????????????????????????????????????????????? | | ?????????????????????????????????????????????????? | | ?????????????????????????????????????????????????? | | ?????????????????????????????????????????????????? | | ?????????????????????????????????????????????????? | | ?????????????????????????????????????????????????? | +----------------------------------------------------+ Best States ------------- Heat Dissipation 28 Energy Generation 10 Energy Capacity 250 Matter Stores 300 Matter Capacity 300 Sight Range 16 Robot Scan Range 14 Terrain Scan Density 10 Evasion (%) 55 Item Schematics ----------------- None Robot Schematics ------------------ None Fabricated ------------ Nothing Alien Tech Used ----------------- None Achievements -------------- Back For More Challenges ------------ None Game ------ Seed NeutronPrecisionMediator Manual? 0 Play Time 00:16:35 Cumulative 18.0 hours Start 2024.04.03 @ 23:39:46 End 2024.04.04 @ 00:03:52 Sessions 1 Manual Loads 0 Difficulty Rogue Special Mode None Game No. 50 Rogue 48 Adventurer 2 Explorer 0 Win Type - Total 0 Types 0/0/0/0/0/0/0/0/0 Lore% 16 Gallery% 22 Achievement% 20 Wizard Run 0 Options --------- Layout 0 ASCII 0 Keyboard 1 Movement Arrows Keybinds 0 Fullscreen 2 Font 18/SmallcapsGlow Map View 76x50 Zoom Use 0% Tactical HUD 1 Map Filters NONE Filters NONE Steam 1 RUN: 3f48ec6c-42cc-46d3-96b7-b5760f43a1ec